bitfinex/quotes_SOLUSD_20260202
["timestamp","ask_amount","ask_price","bid_price","bid_amount"]
[1770052122667,0.1,105.63,105.6,6.74331369]
[1770052123179,9.56719863,105.63,105.6,6.74331369]
[1770052123969,0.1,105.63,105.61,6.74331369]
[1770052124379,1.27088051,105.63,105.6,3.44993231]
[1770052124563,0.1,105.63,105.61,3.29338138]
[1770052125082,0.1,105.63,105.61,6.74331369]
[1770052125483,0.1,105.65,105.62,6.74331369]
[1770052126389,0.1,105.65,105.62,3.29338138]
[1770052126564,9.56521533,105.65,105.62,6.74331369]
[1770052128270,0.1,105.65,105.62,16.21094431]
[1770052128469,0.1,105.65,105.63,11.73456195]
[1770052128668,0.1,105.65,105.62,21.20219257]
[1770052129274,1.12564058,105.65,105.62,11.73456195]
[1770052129476,1.12564058,105.65,105.61,21.2028535]
[1770052129786,0.1,105.65,105.63,11.73456195]
[1770052130802,15.46235949,105.69,105.65,2.84936346]
[1770052130970,15.46235949,105.69,105.66,11.46795416]
[1770052132183,6.00027133,105.69,105.66,20.93195919]
[1770052132396,15.46217202,105.69,105.66,11.46795416]
[1770052134067,15.46217202,105.69,105.66,2.84936346]
[1770052134285,48.72583278,105.69,105.65,11.46795416]
[1770052134790,40.10724208,105.69,105.65,20.93305001]
[1770052134990,40.10724208,105.69,105.65,11.46795416]
[1770052135167,6.00027133,105.69,105.67,2.84936346]
[1770052136085,6.00027133,105.69,105.67,11.46795416]
[1770052136972,6.00027133,105.69,105.67,2.84936346]
[1770052137285,15.46192889,105.69,105.66,8.6185907]
[1770052137476,15.46192889,105.69,105.66,11.46795416]
[1770052137874,0.92781517,105.67,105.64,8.6185907]
[1770052138074,0.92781517,105.67,105.63,20.93435173]
[1770052138973,10.39166444,105.67,105.63,20.93435173]
[1770052139602,10.39166444,105.67,105.61,2.84936346]
[1770052139603,9.50573304,105.65,105.61,2.84936346]
[1770052139892,9.50573304,105.65,105.62,2.84936346]
[1770052139893,0.88714234,105.65,105.62,2.84936346]
[1770052140283,8.6185907,105.66,105.54,3.03158577]
[1770052140284,21.51245225,105.63,105.54,3.03158577]
[1770052140486,21.51245225,105.63,105.53,3.03158577]
[1770052140487,8.6185907,105.55,105.53,3.03158577]
[1770052140674,8.6185907,105.56,105.53,3.03158577]
[1770052140870,34.9185907,105.57,105.54,3.03158577]
[1770052141074,26.3,105.57,105.55,3.03158577]
[1770052141300,26.3,105.57,105.56,3.03158577]
[1770052141508,8.6185907,105.6,105.56,3.03158577]
[1770052141798,18.0887324,105.6,105.56,3.03158577]
[1770052141992,8.6185907,105.59,105.56,3.03158577]
[1770052142199,8.6185907,105.58,105.54,12.50665657]
[1770052142397,8.6185907,105.58,105.54,3.03158577]
[1770052142598,8.6185907,105.58,105.55,3.03158577]
[1770052142888,8.6185907,105.59,105.55,3.03158577]
[1770052143281,18.09008151,105.58,105.55,3.03158577]
[1770052143782,9.47149081,105.58,105.55,3.03158577]
[1770052144373,34.9185907,105.6,105.56,11.65017647]
[1770052144577,9.46913406,105.61,105.58,3.03158577]
[1770052144776,9.46913406,105.61,105.57,3.03158577]
[1770052144777,18.08772476,105.61,105.57,3.03158577]
[1770052146197,18.08772476,105.61,105.58,3.03158577]
[1770052146696,18.08772476,105.61,105.57,3.03158577]
[1770052146884,8.6185907,105.6,105.57,3.03158577]
[1770052147293,9.47149081,105.58,105.55,3.03158577]
[1770052147597,32.28753181,105.63,105.58,3.03158577]
[1770052147780,32.28753181,105.63,105.59,3.03158577]
[1770052147979,8.6185907,105.63,105.59,11.65017647]
[1770052150893,8.6185907,105.58,105.55,3.03158577]
[1770052151195,41.76629416,105.59,105.55,3.03158577]
[1770052151597,8.6185907,105.58,105.55,3.03158577]
[1770052152696,41.76566901,105.59,105.55,11.65017647]
[1770052152997,41.76566901,105.59,105.52,3.03158577]
[1770052152998,8.6185907,105.56,105.52,3.03158577]
[1770052153191,26.32,105.57,105.52,3.03158577]
[1770052153381,34.9385907,105.57,105.53,3.03158577]
[1770052153581,8.6185907,105.56,105.53,3.03158577]
[1770052154799,80.50004734,105.59,105.56,3.03158577]
[1770052154800,18.0891845,105.59,105.56,3.03158577]
[1770052154999,8.6185907,105.58,105.53,8.6185907]
[1770052155197,8.6185907,105.57,105.53,3.03158577]
[1770052155393,8.6185907,105.56,105.53,3.03158577]
[1770052155800,33.14707831,105.59,105.52,3.03158577]
[1770052155801,8.6185907,105.55,105.52,3.03158577]
[1770052156185,8.6185907,105.56,105.52,3.03158577]
[1770052156493,8.6185907,105.55,105.52,3.03158577]
[1770052156695,8.6185907,105.54,105.52,3.03158577]
[1770052157286,8.6185907,105.53,105.5,3.03158577]
[1770052158197,0.28432314,105.56,105.51,3.03158577]
[1770052158501,8.6185907,105.54,105.51,3.03158577]
[1770052158885,18.09381901,105.54,105.51,3.03158577]
[1770052160500,18.09319309,105.55,105.52,3.03158577]
[1770052161286,9.47460239,105.55,105.52,3.03158577]
[1770052161605,44.41172127,105.57,105.53,3.03158577]
[1770052161809,8.6185907,105.55,105.53,3.03158577]
[1770052162397,8.6185907,105.54,105.52,3.03158577]
[1770052163200,8.6185907,105.53,105.5,3.03158577]
[1770052163400,8.6185907,105.52,105.49,3.03158577]
[1770052163606,18.09652566,105.51,105.49,3.03158577]
[1770052163803,18.09652566,105.51,105.47,8.6185907]
[1770052163988,8.6185907,105.5,105.47,3.03158577]
[1770052164986,33.1723715,105.51,105.47,3.03158577]
[1770052164987,8.6185907,105.49,105.47,3.03158577]
[1770052165205,8.6185907,105.5,105.47,3.03158577]
[1770052165409,18.09595727,105.52,105.49,3.03158577]
[1770052165705,9.47736657,105.52,105.5,3.03158577]
[1770052165899,18.09411932,105.54,105.5,18.09724241]
[1770052166100,18.09187603,105.56,105.52,8.6185907]
[1770052166299,18.09187603,105.56,105.53,3.03158577]
[1770052166497,18.10894433,105.56,105.53,3.03158577]
[1770052167490,8.635659,105.55,105.52,3.03158577]
[1770052167690,8.635659,105.54,105.51,3.03158577]
[1770052168812,8.635659,105.53,105.5,3.03158577]
[1770052170098,18.11209747,105.53,105.5,3.03158577]
[1770052173311,8.635659,105.51,105.47,12.51233206]
[1770052173614,8.635659,105.49,105.47,3.03158577]
[1770052174833,8.635659,105.48,105.44,0.2]
[1770052175000,8.635659,105.45,105.44,0.2]
[1770052176204,18.11882637,105.45,105.44,0.2]
[1770052176612,8.635659,105.45,105.44,0.2]
[1770052177119,1.81856394,105.44,105.4,0.2]
[1770052177322,5.85495968,105.42,105.4,0.2]
[1770052177624,3.07426036,105.42,105.4,0.2]
[1770052178215,8.635659,105.43,105.4,9.68757523]
[1770052178617,8.635659,105.42,105.4,0.2]
[1770052179018,8.635659,105.42,105.4,2.96545743]
[1770052180820,8.635659,105.43,105.4,12.45295351]
[1770052181008,11.49002375,105.44,105.4,12.45295351]
[1770052181833,8.635659,105.45,105.41,2.76545743]
[1770052182219,8.635659,105.45,105.42,2.76545743]
[1770052184235,8.635659,105.45,105.42,12.25083222]
[1770052184440,62.95174164,105.49,105.42,12.25083222]
[1770052184441,2.85436475,105.49,105.44,2.76545743]
[1770052184635,8.635659,105.47,105.44,2.76545743]
[1770052184936,23.69716593,105.5,105.42,12.25083222]
[1770052184937,11.49002375,105.46,105.42,12.25083222]
[1770052185123,8.635659,105.45,105.42,12.25083222]
[1770052186636,8.635659,105.45,105.41,12.25183813]
[1770052186637,8.635659,105.44,105.41,12.25183813]
[1770052186833,8.635659,105.44,105.42,2.76545743]
[1770052187522,8.635659,105.44,105.42,12.25124538]
[1770052189037,8.635659,105.44,105.42,2.76545743]
[1770052189440,8.635659,105.44,105.42,12.25118357]
[1770052190938,8.635659,105.45,105.42,12.25118357]
[1770052192615,8.635659,105.44,105.42,2.76545743]
[1770052193524,8.635659,105.44,105.42,12.25129531]
[1770052195439,8.635659,105.45,105.42,12.25129531]
[1770052195644,8.635659,105.47,105.44,2.51785654]
[1770052195841,11.33492846,105.48,105.44,2.51785654]
[1770052196142,8.635659,105.48,105.45,2.51785654]
[1770052196342,20.81488303,105.49,105.45,2.51785654]
[1770052197224,20.81488303,105.49,105.45,12.00060239]
[1770052197624,8.635659,105.49,105.46,2.51785654]
[1770052197840,11.33492846,105.48,105.45,9.48274585]
[1770052198135,11.33492846,105.48,105.45,12.00060239]
[1770052198323,11.33492846,105.47,105.44,9.48357677]
[1770052198821,11.33492846,105.47,105.44,12.00143331]
[1770052200040,20.81632313,105.47,105.44,2.51785654]
[1770052200226,20.81632313,105.47,105.44,12.00187358]
[1770052201435,8.635659,105.46,105.44,2.51785654]
[1770052201647,8.635659,105.46,105.43,12.00232648]
[1770052201836,8.635659,105.46,105.44,12.00191963]
[1770052202032,2.69926946,105.47,105.44,12.00191963]
[1770052202232,11.33492846,105.46,105.43,9.48459468]
[1770052202433,11.33492846,105.44,105.4,2.71785654]
[1770052202632,11.33492846,105.43,105.4,2.71785654]
[1770052202834,8.635659,105.42,105.4,0.2]
[1770052203047,8.635659,105.42,105.4,12.20547844]
[1770052203228,8.635659,105.44,105.41,2.51785654]
[1770052203434,2.69926946,105.45,105.42,12.00372259]
[1770052203630,11.33492846,105.45,105.42,12.00372259]
[1770052204437,8.635659,105.43,105.4,12.20487381]
[1770052204942,8.635659,105.43,105.41,9.48673971]
[1770052205338,20.81812413,105.45,105.42,2.51785654]
[1770052205532,8.635659,105.43,105.4,12.20516222]
[1770052205734,11.33492846,105.43,105.4,9.68694305]
[1770052205947,11.33492846,105.43,105.4,12.20479959]
[1770052206828,8.635659,105.42,105.4,0.2]
[1770052207148,2.69926946,105.41,105.4,0.2]
[1770052207334,20.82092797,105.42,105.4,0.2]
[1770052207536,11.33492846,105.41,105.39,0.2]
[1770052208537,11.33492846,105.41,105.39,9.68834506]
[1770052208739,8.635659,105.43,105.41,2.51785654]
[1770052208941,8.635659,105.44,105.41,2.51785654]
[1770052209148,11.33492846,105.44,105.41,2.51785654]
[1770052209659,11.33492846,105.44,105.41,12.00445734]
[1770052209836,8.635659,105.45,105.42,2.51785654]
[1770052210028,8.635659,105.44,105.41,12.00445734]
[1770052212071,11.33492846,105.45,105.41,12.00445734]
[1770052212440,8.635659,105.44,105.41,12.00445734]
[1770052213178,8.635659,105.43,105.41,2.51785654]
[1770052213542,8.635659,105.43,105.4,12.00504503]
[1770052213876,8.635659,105.42,105.4,2.51785654]
[1770052214342,11.33492846,105.41,105.39,0.2]
[1770052214535,8.635659,105.4,105.39,0.2]
[1770052216247,20.82306116,105.4,105.36,12.00898342]
[1770052216453,8.635659,105.39,105.36,12.00898342]
[1770052216653,8.635659,105.39,105.36,2.51785655]
[1770052216854,2.69926946,105.37,105.36,1e-08]
[1770052217168,33.20729778,105.4,105.36,1e-08]
[1770052217169,8.635659,105.38,105.36,1e-08]
[1770052217341,8.635659,105.38,105.36,9.49120562]
[1770052217543,8.635659,105.38,105.36,1e-08]
[1770052217864,11.33492846,105.39,105.36,2.51785655]
[1770052218240,8.635659,105.4,105.36,2.51785655]
[1770052218456,8.635659,105.4,105.37,2.51785654]
[1770052219370,8.635659,105.38,105.36,1e-08]
[1770052219668,8.635659,105.37,105.36,1e-08]
[1770052221263,11.35824758,105.37,105.36,1e-08]
[1770052221577,8.635659,105.37,105.36,1e-08]
[1770052222764,11.35824758,105.39,105.36,1e-08]
[1770052223066,8.635659,105.37,105.36,1e-08]
[1770052223375,11.35824758,105.37,105.36,1e-08]
[1770052223579,11.35824758,105.37,105.34,10.15286118]
[1770052223779,20.84786436,105.38,105.34,10.15286118]
[1770052224173,8.635659,105.39,105.35,2.60209863]
[1770052224488,11.35824758,105.38,105.35,2.60209863]
[1770052225478,8.635659,105.37,105.35,2.60209863]
[1770052225658,8.635659,105.37,105.35,12.09421196]
[1770052225865,11.35824758,105.38,105.35,12.09421196]
[1770052226783,8.635659,105.39,105.36,2.60209863]
[1770052227453,8.635659,105.38,105.36,2.60209863]
[1770052228475,20.87563297,105.39,105.36,2.60209863]
[1770052229674,11.38682166,105.4,105.37,2.60209863]
[1770052230068,12.21026816,105.4,105.36,12.09329876]
[1770052230266,20.87450124,105.4,105.36,12.09329876]
[1770052230577,8.66423308,105.39,105.36,12.09329876]
[1770052231160,11.38682166,105.4,105.36,12.09329876]
[1770052231972,27.9920913,105.42,105.36,12.09329876]
[1770052231973,2.72258858,105.42,105.39,2.60209863]
[1770052232165,11.38682166,105.42,105.39,2.60209863]
[1770052232359,6.18582427,105.42,105.39,2.60209863]
[1770052233074,6.18582427,105.42,105.39,12.09049478]
[1770052235779,2.72258858,105.42,105.39,12.09049478]
[1770052236080,6.18582427,105.42,105.39,12.09049478]
[1770052238205,9.48457705,105.44,105.4,2.60209863]
[1770052238484,15.66785888,105.47,105.43,6.06533432]
[1770052238680,2.72258858,105.47,105.44,2.60209863]
[1770052238988,2.72258858,105.47,105.44,6.06533432]
[1770052239361,6.18582427,105.49,105.45,6.06533432]
[1770052239558,6.18582427,105.48,105.45,2.60209863]
[1770052239989,6.18582427,105.48,105.45,12.08523794]
[1770052240285,6.18582427,105.46,105.43,2.60209863]
[1770052240581,6.18582427,105.46,105.42,12.08755048]
[1770052240582,8.65245544,105.45,105.42,12.08755048]
[1770052241883,2.72258858,105.43,105.4,9.4872279]
[1770052242182,8.65245544,105.43,105.4,12.08932653]
[1770052242381,9.48372985,105.45,105.35,56.10896807]
[1770052242382,11.37504402,105.41,105.37,2.60209863]
[1770052242978,8.65245544,105.41,105.37,2.60209863]
[1770052243182,8.65245544,105.41,105.38,2.60209863]
[1770052243575,11.37504402,105.39,105.36,12.09263305]
[1770052244065,8.65245544,105.38,105.36,12.09263305]
[1770052244676,8.65245544,105.38,105.36,2.60209863]
[1770052245071,8.65245544,105.38,105.35,12.09380797]
[1770052246486,11.37504402,105.38,105.35,12.09380797]
[1770052246674,11.37504402,105.39,105.36,2.60209863]
[1770052246875,11.37504402,105.39,105.35,35.82423037]
[1770052247184,8.65245544,105.38,105.35,12.09380797]
[1770052247368,11.37504402,105.38,105.35,12.09380797]
[1770052247782,8.65245544,105.38,105.35,12.09380797]
[1770052247981,11.37504402,105.39,105.35,12.09380797]
[1770052249397,20.86371809,105.39,105.35,12.09380797]
[1770052250478,8.65245544,105.38,105.35,12.09380797]
[1770052251090,11.37504402,105.39,105.35,20.74626341]
[1770052251689,20.82012557,105.4,105.36,2.72939331]
[1770052252596,11.33196801,105.39,105.36,2.72939331]
[1770052252978,11.33196801,105.39,105.36,12.22041511]
[1770052253779,8.65245544,105.42,105.38,2.72939331]
[1770052254185,11.33196801,105.42,105.38,2.72939331]
[1770052255088,2.67951257,105.41,105.38,12.21883545]
[1770052255791,20.81823423,105.42,105.38,12.21883545]
[1770052258412,20.81881199,105.41,105.38,2.72939331]
[1770052258581,12.16635655,105.41,105.38,12.21884771]
[1770052258781,20.81881199,105.41,105.38,12.21884771]
[1770052259284,11.33196801,105.41,105.38,12.21884771]
[1770052260397,6.14351977,105.41,105.38,12.21884771]
[1770052260610,6.14351977,105.43,105.4,2.72939331]
[1770052260911,3.4640072,105.45,105.42,2.72939331]
[1770052261086,6.14351977,105.46,105.42,6.19340051]
[1770052261282,9.48176121,105.47,105.43,2.72939331]
[1770052261283,6.14351977,105.47,105.43,2.72939331]
[1770052261481,35.83997703,105.49,105.45,2.72939331]
[1770052261482,15.6234968,105.49,105.45,2.72939331]
[1770052261687,6.14351977,105.46,105.42,6.19340051]
[1770052262000,2.67951257,105.45,105.42,6.19340051]
[1770052262306,6.14351977,105.44,105.4,6.19340051]
[1770052262504,11.33398951,105.44,105.4,20.87091647]
[1770052263090,11.33398951,105.43,105.4,2.72939331]
[1770052263289,2.67951257,105.42,105.4,9.48764601]
[1770052263498,11.33398951,105.43,105.4,12.21703932]
[1770052264500,8.65447694,105.43,105.4,12.21703932]
[1770052264702,11.33398951,105.46,105.42,2.72939331]
[1770052264897,11.33398951,105.46,105.42,11.38387025]
[1770052265098,2.67951257,105.46,105.42,11.38387025]
[1770052265308,2.67951257,105.45,105.42,2.72939331]
[1770052265599,11.33398951,105.45,105.42,2.72939331]
[1770052265999,2.67951257,105.45,105.42,2.72939331]
[1770052266391,11.33398951,105.45,105.42,2.72939331]
[1770052266586,11.33398951,105.45,105.42,12.21487607]
[1770052266808,2.67951257,105.45,105.42,12.21487607]
[1770052267106,11.33398951,105.49,105.45,2.72939331]
[1770052267407,2.67951257,105.46,105.43,2.72939331]
[1770052267588,11.33398951,105.46,105.43,2.72939331]
[1770052268001,2.67951257,105.46,105.43,2.72939331]
[1770052268233,2.67951257,105.46,105.39,51.71796187]
[1770052268234,11.33398951,105.46,105.39,4.27527085]
[1770052268505,11.33398951,105.46,105.39,9.48807438]
[1770052268506,11.33398951,105.42,105.39,9.48807438]
[1770052270897,2.67951257,105.46,105.42,2.72939331]
[1770052271109,11.33398951,105.45,105.41,11.38387025]
[1770052271988,11.33398951,105.45,105.41,20.86998715]
[1770052273400,2.67951257,105.45,105.41,20.86998715]
[1770052273616,11.33398951,105.45,105.41,20.86998715]
[1770052274410,20.8174064,105.45,105.41,20.86998715]
[1770052274706,20.8174064,105.45,105.39,12.21756007]
[1770052274707,11.33398951,105.43,105.39,12.21756007]
[1770052274914,11.33398951,105.43,105.4,9.48765466]
[1770052275810,11.33398951,105.43,105.39,20.87189531]
[1770052276009,2.67951257,105.41,105.38,18.14382181]
[1770052276307,2.67951257,105.41,105.38,9.48934487]
[1770052276614,2.67951257,105.41,105.38,20.87321512]
[1770052278611,11.33398951,105.42,105.38,20.87321512]
[1770052279111,2.67951257,105.41,105.38,18.14382181]
[1770052279294,11.33398951,105.41,105.37,20.87374018]
[1770052279615,11.33398951,105.41,105.37,11.38387025]
[1770052279791,11.33398951,105.41,105.37,20.87383585]
[1770052279992,2.67951257,105.41,105.38,9.48910645]
[1770052280511,20.8209949,105.41,105.37,20.8738823]
[1770052280694,2.82198615,105.4,105.37,9.49001205]
[1770052281023,11.47646309,105.39,105.35,12.24316449]
[1770052281695,2.82198615,105.38,105.35,12.24316449]
[1770052281896,11.47646309,105.39,105.35,12.24316449]
[1770052282201,11.47646309,105.39,105.36,2.75165832]
[1770052282717,2.82198615,105.39,105.36,12.24281447]
[1770052283011,2.82198615,105.39,105.36,20.89729141]
[1770052283414,2.82198615,105.39,105.36,12.24281447]
[1770052284011,1.4408907,105.37,105.34,8.65447694]
[1770052284316,8.65447694,105.38,105.34,2.75165832]
[1770052284693,18.14418203,105.38,105.34,2.75165832]
[1770052286215,18.14418203,105.38,105.34,12.24433156]
[1770052286411,19.58671341,105.38,105.34,12.24433156]
[1770052287122,8.65447694,105.38,105.35,2.75165832]
[1770052287416,19.58691644,105.39,105.35,2.75165832]
[1770052287598,19.58691644,105.39,105.35,11.40613526]
[1770052288412,19.58691644,105.39,105.35,20.89816617]
[1770052288610,43.30833213,105.39,105.35,2.75165832]
[1770052288799,8.65447694,105.38,105.35,2.75165832]
[1770052289117,8.65447694,105.37,105.34,12.24424627]
[1770052289513,8.65447694,105.37,105.34,2.75165832]
[1770052290104,8.65447694,105.36,105.33,2.75165832]
[1770052290308,10.92284748,105.36,105.32,12.44610261]
[1770052290509,8.66948158,105.35,105.32,12.44610261]
[1770052290732,8.66948158,105.34,105.32,0.2]
[1770052291101,10.10104308,105.35,105.32,2.95165832]
[1770052291312,8.66948158,105.35,105.32,2.95165832]
[1770052291531,8.66948158,105.35,105.32,12.44638175]
[1770052292401,23.7260476,105.37,105.31,8.86948158]
[1770052292402,19.38272847,105.33,105.31,0.2]
[1770052292623,8.66948158,105.32,105.3,83.16600147]
[1770052292921,8.66948158,105.31,105.3,0.2]
[1770052293631,8.66948158,105.31,105.26,12.31537127]
[1770052293924,8.66948158,105.29,105.26,2.8152101]
[1770052294128,8.66948158,105.28,105.26,2.8152101]
[1770052294321,8.66948158,105.28,105.25,3.0152101]
[1770052294823,18.16784801,105.29,105.25,3.0152101]
[1770052295512,18.16784801,105.29,105.25,11.68469168]
[1770052296405,8.66948158,105.31,105.27,2.8152101]
[1770052296604,18.16525596,105.31,105.27,2.8152101]
[1770052297507,18.16485437,105.32,105.29,2.8152101]
[1770052297707,8.66948158,105.32,105.29,2.8152101]
[1770052298118,4.27527085,105.35,105.3,2.8152101]
[1770052298326,8.66948158,105.34,105.31,2.8152101]
[1770052298829,8.66948158,105.34,105.31,12.31097247]
[1770052299032,18.1620894,105.35,105.31,12.31097247]
[1770052299235,8.66948158,105.34,105.31,2.8152101]
[1770052299817,8.66948158,105.33,105.3,2.8152101]
[1770052300734,18.1637496,105.33,105.3,2.8152101]
[1770052300917,8.66948158,105.32,105.28,20.98272875]
[1770052301118,8.66948158,105.32,105.28,2.8152101]
[1770052301428,8.66948158,105.32,105.28,12.31363922]
[1770052301816,8.66948158,105.32,105.28,20.9831208]
[1770052302213,8.66948158,105.32,105.28,2.8152101]
[1770052303224,9.49577438,105.31,105.28,2.8152101]
[1770052303426,18.16525596,105.31,105.28,2.8152101]
[1770052303624,8.66948158,105.31,105.28,12.31368413]
[1770052303937,8.66948158,105.31,105.28,2.8152101]
[1770052305020,9.49382333,105.34,105.3,2.8152101]
[1770052305229,18.16330491,105.34,105.3,2.8152101]
[1770052305635,18.16330491,105.34,105.3,11.48469168]
[1770052306327,18.16330491,105.34,105.3,2.8152101]
[1770052307244,109.68876566,105.36,105.32,11.48469168]
[1770052307414,8.66948158,105.35,105.32,2.8152101]
[1770052307614,18.16190275,105.35,105.32,2.8152101]
[1770052307820,8.66948158,105.34,105.29,11.48469168]
[1770052308036,8.66948158,105.34,105.29,20.98183915]
[1770052308238,8.66948158,105.34,105.3,11.48469168]
[1770052309537,18.16278346,105.34,105.3,2.8152101]
[1770052309748,18.16209065,105.35,105.31,11.48469168]
[1770052310042,119.18052895,105.36,105.32,2.8152101]
[1770052310245,18.16124487,105.36,105.32,2.8152101]
[1770052310417,8.66948158,105.35,105.32,2.8152101]
[1770052310622,18.16124487,105.36,105.32,2.8152101]
[1770052312033,18.16022563,105.37,105.34,2.8152101]
[1770052312437,18.16022563,105.37,105.33,11.48469168]
[1770052312634,18.16022563,105.37,105.32,9.49473819]
[1770052312635,9.48970015,105.38,105.34,8.66948158]
[1770052312839,44.53886782,105.39,105.35,11.48469168]
[1770052313040,44.53886782,105.39,105.35,2.8152101]
[1770052313432,68.26081431,105.39,105.35,2.8152101]
[1770052313745,41.88081431,105.39,105.35,2.8152101]
[1770052315048,18.15886782,105.39,105.35,20.97677666]
[1770052315245,18.15886782,105.39,105.36,2.8152101]
[1770052315543,18.15761337,105.4,105.36,12.30624506]
[1770052315722,9.48813179,105.4,105.37,2.8152101]
[1770052315928,18.15664013,105.41,105.37,11.48469168]
[1770052316229,18.15664013,105.41,105.37,2.8152101]
[1770052316641,8.66948158,105.4,105.37,2.8152101]
[1770052317247,18.15664013,105.41,105.37,2.8152101]
[1770052318544,8.66948158,105.39,105.36,2.8152101]
[1770052319340,8.66948158,105.39,105.36,12.30647568]
[1770052319650,68.25355503,105.41,105.38,2.8152101]
[1770052320046,44.53664013,105.41,105.38,2.8152101]
[1770052320448,9.48617449,105.42,105.39,2.8152101]
[1770052321351,18.15491315,105.43,105.39,2.8152101]
[1770052321858,18.15401359,105.44,105.4,11.48469168]
[1770052322148,18.15401359,105.44,105.41,2.8152101]
[1770052324652,18.25304294,105.45,105.42,2.8152101]
[1770052324844,9.5831705,105.45,105.43,2.8152101]
[1770052325044,18.25265208,105.45,105.42,2.8152101]
[1770052325354,18.25265208,105.45,105.41,12.3018331]
[1770052326056,8.66948158,105.43,105.41,2.8152101]
[1770052326256,33.29108894,105.45,105.39,2.8152101]
[1770052326257,8.66948158,105.42,105.39,2.8152101]
[1770052326950,8.66948158,105.41,105.37,12.30516849]
[1770052327152,8.66948158,105.41,105.38,2.8152101]
[1770052327748,18.15642323,105.41,105.38,2.8152101]
[1770052327936,35.02948158,105.43,105.39,2.8152101]
[1770052328142,8.66948158,105.44,105.4,2.8152101]
[1770052328362,8.66948158,105.44,105.4,11.48469168]
[1770052328554,8.66948158,105.44,105.4,2.8152101]
[1770052329263,9.48448883,105.44,105.41,2.8152101]
[1770052329643,18.15397041,105.44,105.41,2.8152101]
[1770052330049,18.15397041,105.44,105.4,8.66948158]
[1770052330050,18.15397041,105.44,105.4,2.8152101]
[1770052330252,8.66948158,105.43,105.4,2.8152101]
[1770052330555,9.48448883,105.44,105.4,2.8152101]
[1770052330764,8.66948158,105.43,105.4,2.8152101]
[1770052331663,18.15464252,105.43,105.39,12.30327983]
[1770052332853,8.66948158,105.42,105.39,12.30327983]
[1770052333444,8.66948158,105.42,105.39,2.8152101]
[1770052333642,18.15543545,105.42,105.39,2.8152101]
[1770052334962,18.15543545,105.42,105.39,12.3037415]
[1770052335165,18.15486107,105.43,105.4,2.8152101]
[1770052337552,8.66948158,105.42,105.39,2.8152101]
[1770052338665,8.66948158,105.42,105.38,12.30433542]
[1770052338864,8.66948158,105.42,105.39,2.8152101]
[1770052339556,18.15590347,105.42,105.39,2.8152101]
[1770052340555,9.48642189,105.42,105.39,2.8152101]
[1770052340765,18.15590347,105.42,105.39,2.8152101]
[1770052343148,41.86734761,105.43,105.39,20.97308827]
[1770052343355,41.86734761,105.43,105.39,12.30360669]
[1770052343744,18.15493179,105.43,105.4,2.8152101]
[1770052344354,8.66948158,105.42,105.39,2.8152101]
[1770052345367,18.15602301,105.42,105.39,2.8152101]
[1770052346164,8.66948158,105.41,105.38,2.8152101]
[1770052347470,18.15666946,105.41,105.38,2.8152101]
[1770052348660,18.15666946,105.41,105.38,9.4893182]
[1770052348867,18.15666946,105.41,105.39,2.8152101]
[1770052349167,9.48496632,105.43,105.4,2.8152101]
[1770052349360,18.1544479,105.43,105.4,2.8152101]
[1770052349760,9.48496632,105.43,105.4,2.8152101]
[1770052350272,18.1544479,105.43,105.4,2.8152101]
[1770052352478,18.14165471,105.43,105.4,2.8152101]
[1770052353685,8.65668839,105.42,105.38,2.8152101]
[1770052353865,8.65668839,105.4,105.38,2.8152101]
[1770052354855,8.65668839,105.4,105.36,8.65668839]
[1770052355084,8.65668839,105.39,105.36,12.30641854]
[1770052355554,8.65668839,105.39,105.37,2.8152101]
[1770052355753,18.14439961,105.4,105.37,2.8152101]
[1770052355954,18.14392617,105.41,105.37,2.8152101]
[1770052356371,8.65668839,105.4,105.37,2.8152101]
[1770052356876,18.14458724,105.4,105.37,2.8152101]
[1770052359374,11.33490934,105.43,105.4,2.8152101]
[1770052359578,9.48456485,105.44,105.41,2.8152101]
[1770052359995,0.1,105.45,105.44,2.8152101]
[1770052360508,0.1,105.5,105.47,11.42189849]
[1770052360782,1e-08,105.5,105.49,11.42189849]
[1770052360958,0.1,105.52,105.5,2.7652101]
[1770052361151,0.1,105.52,105.51,2.7652101]
[1770052361570,0.1,105.52,105.49,12.24441973]
[1770052361772,8.75668839,105.52,105.49,2.7652101]
[1770052361973,0.1,105.52,105.49,2.7652101]
[1770052362193,0.1,105.52,105.51,2.7652101]
[1770052362394,8.65668839,105.54,105.51,2.7652101]
[1770052362594,8.65668839,105.54,105.5,12.24377132]
[1770052362891,8.65668839,105.53,105.49,2.7652101]
[1770052363072,33.54444652,105.55,105.49,2.7652101]
[1770052363073,8.65668839,105.52,105.49,2.7652101]
[1770052363396,18.13374134,105.52,105.49,2.7652101]
[1770052363596,0.1,105.55,105.5,2.7652101]
[1770052363795,18.2311966,105.55,105.51,11.42189849]
[1770052364471,18.2311966,105.55,105.51,2.7652101]
[1770052365692,18.2311966,105.55,105.51,11.42189849]
[1770052366188,18.2311966,105.55,105.51,2.7652101]